Cogmind - Beta 16 @@@ ROGUE MODE // 2026.01.05 @ 11:33:20 Player: Oldman Pu Result: Destroyed by FO-J1A(R) with Subdweller Beam Cannon Performance ------------- Evolutions (0) 0 Regions Visited (2) 400 Robots Destroyed (20) 100 Value Destroyed (436) 436 Prototype IDs (1) 20 Alien Tech Used (0) 0 Bonus (0) 0 TOTAL SCORE: 956 Bonus ------- None Cogmind --------- Core Integrity 0/250 Matter 294/300 Energy 265/265 System Corruption 1% Temperature Cool (9) Movement Rolling (155) Ox5 Location -10/Subcaves Parts ------- > --- POWER (1) -------- Improved Ion Engine > --- PROPULSION (2) --- Wheel > --- UTILITY (2) ------ High-capacity Storage Unit Core Shielding > --- WEAPON (2) ------- Medium Laser Assault Rifle > --- INVENTORY (20) --- Improved Ion Engine Improved Heat Sink Large Storage Unit Light Armor Plating Medium Laser Subdweller Laser Beam Cannon Subdweller Beam Cannon Assault Rifle Assault Rifle Light Cannon Peak State ------------ > --- POWER ------------ Improved Ion Engine > --- PROPULSION ------- Wheel Wheel > --- UTILITY ---------- Large Storage Unit Core Shielding > --- WEAPON ----------- Improved Assault Rifle Improved Assault Rifle > --- INVENTORY -------- Improved Ion Engine Improved Ion Engine Improved Ion Engine Small Storage Unit Assault Rifle Assault Rifle Assault Rifle [Rating: 13] Favorites ----------- Power Improved Ion Engine Engine Improved Ion Engine Propulsion Wheel Wheel Wheel Utility Core Shielding Storage High-capacity Storage Unit Protection Core Shielding Weapon Improved Assault Rifle Energy Gun Medium Laser Ballistic Gun Improved Assault Rifle Build | -11 -10 -10 ------- Run | Yrd Mat Sub Slots Evolved . | . . . Power . | . . . Propulsion . | . . . Utility . | . . . Weapon . | . . . Parts Attached 22 | 6 10 6 Power 4 | 1 1 2 Engine 4 | 1 1 2 Core . | . . . Reactor . | . . . Propulsion 5 | 2 2 1 Treads . | . . . Leg . | . . . Wheel 5 | 2 2 1 Hover . | . . . Flight . | . . . Utility 5 | 1 3 1 Device . | . . . Storage 3 | 1 2 . Processor . | . . . Hackware . | . . . Protection 2 | . 1 1 Artifact . | . . . Weapon 8 | 2 4 2 Energy Gun 2 | . 1 1 Energy Cannon . | . . . Ballistic Gun 6 | 2 3 1 Ballistic Cannon . | . . . Launcher . | . . . Special Weapon . | . . . Impact Weapon . | . . . Slashing Weapon . | . . . Piercing Weapon . | . . . Special Melee Weapon . | . . . Unidentified Prototypes 1 | . 1 . Parts Lost 10 | . 2 8 Power 2 | . . 2 Propulsion 4 | . 1 3 Utility 1 | . . 1 Weapon 3 | . 1 2 Highest Loss Streak 3 | . 1 3 To Critical Strikes . | . . . Average Backups 11 | . 10 13 Power 2 | . 2 1 Propulsion 1 | . 1 1 Utility 2 | . 2 3 Weapon 5 | . 4 6 Tool/Special . | . . . Unused Backups 10 | . 2 8 Power 2 | . 1 1 Propulsion . | . . . Utility 2 | . . 2 Weapon 6 | . 1 5 Tool/Special . | . . . Average Slot Usage (%) 95 | . 97 93 Engine 13 | . 14 13 Wheel 25 | . 27 22 Storage 14 | . 14 14 Protection 12 | . 11 14 Energy Gun 9 | . 5 13 Ballistic Gun 18 | . 22 13 Peak Build Rating 13 | 6 13 12 Average Rating 10 | 4 11 9 On Entrance 6 | . 6 12 Avg Prop Armor Cover (%) 20 | 20 . . Naked Turns . | . . . Heaviest Build 54 | 12 54 53 Greatest Support 20 | 20 20 20 Greatest Overweight (x) 5 | . 5 5 Average Overweight (x) 2 | . 1 3 Largest Inventory Capacity 20 | 8 20 20 Average Capacity 18 | 6 18 20 Most Carried 16 | 2 16 16 Average Carried 11 | . 10 13 Final Capacity 20 | 8 20 20 Final Carried 16 | 2 16 11 Class Distribution -------------------- 100% | Mutant Dominant Class ---------------- Mutant | -10/Materials Mutant | -10/Subcaves Resources | -11 -10 -10 ----------- Run | Yrd Mat Sub Matter Collected 750 | 201 426 123 Remotely . | . . . Salvage Created 739 | . 580 159 Parts 43 | . 32 11 Haulers Intercepted 2 | . 2 . Recyclers Shooed . | . . . Parts Field Recycled . | . . . Retrieved Matter . | . . . Parts Self-Destructed 4 | . . 4 Prevented . | . . . Parts Restored . | . . . Kills | -11 -10 -10 ------- Run | Yrd Mat Sub Combat Hostiles Destroyed 12 | . 8 4 Guns 12 | . 8 4 Classes Destroyed 7 | . 6 1 Worker 2 | . 2 . Hauler 2 | . 2 . Recycler 2 | . 2 . Watcher 2 | . 2 . Swarmer 3 | . 3 . Grunt 5 | . 5 . Subdweller 4 | . . 4 Best Kill Streak 7 | . 7 1 Combat Bots Only 3 | . 3 1 Max Kills in Single Turn 1 | . 1 1 Gunslinging . | . . . Exploded . | . . . Melee . | . . . Uniques/NPCs Destroyed . | . . . Combat | -11 -10 -10 -------- Run | Yrd Mat Sub Hostile Shots Fired 101 | . 59 42 Missed 37 | . 20 17 Hits 64 | . 39 25 Projectile 64 | . 39 25 AOE 3 | . . 3 Damage Taken 1066 | . 425 641 Core 263 | . 44 219 Absorbed by Shields . | . . . Redirected to Shielding 55 | . 9 46 Core Remaining (%) 100 | 100 . . Volleys Fired 72 | . 45 27 Largest 2 | . 2 2 Hottest 73 | . 73 73 Shots Fired 140 | . 90 50 Gun 140 | . 90 50 Cannon . | . . . Launcher . | . . . Special . | . . . Kinetic 114 | . 87 27 Thermal 26 | . 3 23 Explosive . | . . . Electromagnetic . | . . . Robot Hit Streak 28 | . 11 28 Robot Miss Streak 5 | . 5 1 Penetration Max . | . . . Secondary Targets 1 | . 1 . Max Gunslinging Chain 1 | . 1 . Shots Hit Robots 99 | . 57 42 Core Hits 32 | . 22 10 Critical Kills . | . . . Critical Parts Destroyed . | . . . Critical Strikes 3 | . . 3 Burn 3 | . . 3 Melee Attacks . | . . . Impact . | . . . Slashing . | . . . Piercing . | . . . Sneak Attacks . | . . . Combat Hostiles . | . . . Follow-up Attacks . | . . . Damage Inflicted 1492 | . 936 556 Guns 1492 | . 936 556 Cannons . | . . . Explosions . | . . . Melee . | . . . Ramming . | . . . Kinetic 1218 | . 899 319 Thermal 274 | . 37 237 Explosive . | . . . Electromagnetic . | . . . Impact . | . . . Slashing . | . . . Piercing . | . . . Highest Corruption 1 | . 1 1 Average Corruption 1 | . 1 1 Corruption Purged . | . . . Corruption Blocked . | . . . Effects 7 | . 6 1 Message Errors 1 | . 1 . Matter Fused 2 | . 2 . Heat Flow Errors 1 | . 1 . Energy Discharges 1 | . 1 . Data Loss (major) 1 | . . 1 Misfires 1 | . 1 . Overload Shots . | . . . Overflow Damage . | . . . Projectiles . | . . . Explosions . | . . . Melee . | . . . Knockbacks . | . . . Impact . | . . . Kinetic . | . . . Secondary . | . . . Self-Inflicted Damage . | . . . Shots . | . . . Rammed . | . . . Targets Rammed . | . . . Kicked . | . . . Crushed . | . . . Highest Temperature 238 | . 238 . Average Temperature 35 | . 35 . Received Heat Transfer 273 | . 174 99 Siege Activations . | . . . Martial Activations . | . . . Shielding Activations . | . . . Robots Disrupted . | . . . Combat Hostiles . | . . . Robots Corrupted . | . . . Combat Hostiles . | . . . Parts Fried . | . . . Impact Corruptions . | . . . Robots Melted . | . . . Combat Hostiles . | . . . Parts Melted 1 | . . 1 Heat Transferred 1036 | . 111 925 Parts Sabotaged . | . . . Parts Stolen . | . . . Parts Stripped . | . . . Power Chain Reactions . | . . . Alert | -11 -10 -10 ------- Run | Yrd Mat Sub Maximum Alert Level . | . . . Low Security (%) 100 | 100 100 . Level 1 . | . . . Level 2 . | . . . Level 3 . | . . . Level 4 . | . . . Level 5 . | . . . High Security . | . . . Max Security . | . . . Peak Influence 101 | . 101 . Initial . | . . . Average 35 | . 37 . Influence Increases 248 | . 248 . Destroy 0b10 Robot/C 160 | . 160 . Destroy 0b10 Robot/NC 40 | . 40 . Destroy Leader 48 | . 48 . Influence Decreases 248 | . 248 . Time Decay 228 | . 228 . Lost Part 20 | . 20 . Squads Dispatched 1 | . 1 . Investigation . | . . . Extermination . | . . . Reinforcement 1 | . 1 . Assault . | . . . Garrison . | . . . Intercept . | . . . Searches Triggered . | . . . Construction Impeded . | . . . Haulers Reinforced . | . . . Active Scanning Responses . | . . . Cargo Convoy Interrupts . | . . . Stealth | -11 -10 -10 --------- Run | Yrd Mat Sub Distress Signals . | . . . Communications Jammed . | . . . Distress Signals . | . . . Times Spotted 19 | . 13 6 Peak Tracking Total 3 | . 3 2 Tactical Retreats . | . . . Traps | -11 -10 -10 ------- Run | Yrd Mat Sub Traps Triggered 1 | . 1 . Indirectly . | . . . Trap Hack Attempts . | . . . Triggered . | . . . Disarmed . | . . . Reprogrammed . | . . . Reused . | . . . Traps Extracted . | . . . Installed . | . . . Triggered . | . . . Machines | -11 -10 -10 ---------- Run | Yrd Mat Sub Machines Disabled . | . . . Max in Single Turn . | . . . Machines Repaired . | . . . Machines Dismantled . | . . . Machines Sabotaged . | . . . Overloaded Fab Kills . | . . . Hacking | -11 -10 -10 --------- Run | Yrd Mat Sub Machines Accessed 2 | . 2 . Terminals 2 | . 2 . Fabricators . | . . . Repair Stations . | . . . Recycling Units . | . . . Scanalyzers . | . . . Garrison Access . | . . . Total Hacks 5 | . 5 . Successful 1 | . 1 . Failed 4 | . 4 . Catastrophic . | . . . Database Lockouts . | . . . Manual . | . . . Terminals 5 | . 5 . Fabricators . | . . . Repair Stations . | . . . Recycling Units . | . . . Scanalyzers . | . . . Garrison Access . | . . . Terminal Hacks 1 | . 1 . Locate Traps 1 | . 1 . Fabricator Hacks . | . . . Repair Station Hacks . | . . . Recycling Unit Hacks . | . . . Scanalyzer . | . . . Garrison Access Hacks . | . . . Unauthorized Hacks . | . . . Terminals . | . . . Fabricators . | . . . Repair Stations . | . . . Recycling Units . | . . . Scanalyzers . | . . . Garrison Access . | . . . Data Cores Recovered . | . . . Used . | . . . Hacking Detections 2 | . 2 . Full Trace Events . | . . . Feedback Events . | . . . Feedback Blocked . | . . . Robot Schematics Acquired . | . . . Robots Built . | . . . Authchips . | . . . Time . | . . . Total Robot Build Rating . | . . . Part Schematics Acquired . | . . . Parts Built . | . . . Authchips . | . . . Time . | . . . Total Part Build Rating . | . . . Part Studies Acquired . | . . . Parts Repaired . | . . . Time . | . . . Parts Recycled . | . . . Recycled Matter . | . . . Retrieved Matter . | . . . Retrieved Components . | . . . Parts Scanalyzed . | . . . Part Schematics Acquired . | . . . Parts Damaged . | . . . Bothacking | -11 -10 -10 ------------ Run | Yrd Mat Sub Used RIF Installer . | . . . Robots Hacked . | . . . Non-combat . | . . . Combat . | . . . Robot Hacks Applied . | . . . Relay Couplers Released . | . . . Fabnet Peak Effective % . | . . . Robots Rewired . | . . . Allies Hacked . | . . . Hacks Repelled . | . . . Allies | -11 -10 -10 -------- Run | Yrd Mat Sub Total Allies . | . . . Largest Group . | . . . Highest-Rated Group . | . . . Highest-Rated Ally . | . . . Total Orders . | . . . Ally Attacks . | . . . Total Damage . | . . . Kills . | . . . Allies Corrupted . | . . . Allies Melted . | . . . Intel | -11 -10 -10 ------- Run | Yrd Mat Sub Active Infowar (turns) . | . . . Robot Analysis Total . | . . . Derelict Logs Recovered 1 | . . 1 Drone Launches . | . . . Drone Recoveries . | . . . Exploration | -11 -10 -10 ------------- Run | Yrd Mat Sub Turns Passed 1517 | 46 811 660 Spaces Moved 1094 | 48 614 432 Core 9 | 9 . . Treads . | . . . Legs . | . . . Wheels 1085 | 39 614 432 Hover . | . . . Flight . | . . . Fastest Speed 50 | 50 80 110 Average Speed 110 | 74 103 125 Slowest Speed 155 | 80 155 155 Overloaded Moves . | . . . Propulsion Burnouts . | . . . Robots Hopped . | . . . Potential Cave-ins . | . . . Cave-ins Triggered . | . . . Exploration Rate (%) 41 | 3 91 31 Regions Visited 2 Branch Regions 1 Pre-discovered Areas 1 | . . 1 Known Exits Taken . | . . . Unknown Exits Taken 2 | 1 1 . Scrap Searched . | . . . Spaces Dug . | . . . Terrain Destroyed . | . . . Melee . | . . . Projectile . | . . . AOE . | . . . Terrain Rammed . | . . . Walls Destroyed . | . . . Machines Disabled . | . . . Actions | -11 -10 -10 --------- Run | Yrd Mat Sub Total 1256 | 55 698 503 Wait 44 | . 9 35 Move 1092 | 47 613 432 Hop . | . . . Pick Up 19 | 2 15 2 Fast Attach 10 | 6 4 . Attach 8 | . 1 7 Detach . | . . . Swap 5 | . 5 . Drop 6 | . 6 . Fire 72 | . 45 27 Melee . | . . . Ram . | . . . Kick . | . . . Crush . | . . . Escape Stasis . | . . . Rewire . | . . . Trap . | . . . Miscellaneous . | . . . Route ------- -11/Scrapyard -10/Materials (discovered 5 exits: [*Mat x2] / [*Min x2] / [*Sub]) -10/Subcaves (discovered 1 exit: [*Mat]) History --------- Turn | Location | Event 10 | -11/Scrapyard | Discovered new exit (range 15) 47 | -11/Scrapyard | Entered Materials 198 | -10/Materials | Discovered new exit (range 11) 305 | -10/Materials | Build established: Mutant 463 | -10/Materials | Discovered new exit (range 6) 595 | -10/Materials | Discovered new exit (range 6) 701 | -10/Materials | Discovered new exit (range 8) 842 | -10/Materials | Discovered new exit (range 11) 858 | -10/Materials | Entered Subcaves 942 | -10/Subcaves | Learned location of Zion (-7) 942 | -10/Subcaves | Met a Zionite searching for "candidates" 1192 | -10/Subcaves | Core integrity fell below 50% 1226 | -10/Subcaves | Lost 3 parts (1p1n1w) 1276 | -10/Subcaves | Core integrity fell below 20% 1314 | -10/Subcaves | Lost 3 parts (2n1u) 1507 | -10/Subcaves | Discovered new exit (range 5) 1518 | -10/Subcaves | Destroyed by FO-J1A(R) with Subdweller Beam Cannon Last Messages --------------- 01118_ Acquired 46 matter. 01120_ Acquired Sub. Laser. 01189_ Med. Laser destroyed. 01189_ Imp. Ion Engine destroyed. 01191_ AX-AWD(O) cries out in pain. 01191_ AX-AWD(O) destroyed. 01195_ Wheel destroyed. 01198_ MC-FZ0(R) destroyed. 01211_ Acquired 30 matter. 01215_ Acquired Sub. Beam Cannon. 01252_ Acquired 10 matter. 01273_ 7B-5RX(R): "SUBMAD!" 01273_ Wheel destroyed. 01279_ 7B-5RX(R) suffers critical hit (Burn). 01281_ Core Shielding destroyed. 01282_ Subatomizers dissect the Disposable Heat Sink. 01283_ Wheel destroyed. 01283_ 7B-5RX(R) destroyed. 01295_ Acquired 22 matter. 01507_ EXIT=FOUND Map ----- +----------------------------------------------------+ | ?????????????????????????????????????????????????? | | ?????????????????????????????????????????????????? | | ?????????????????????????????????????????????????? | | ?????????????????????????????????????????????????? | | ?????????????????????????????????????????????????? | | ?????????????????????????????????????????????????? | | ?????????????????????????????????????????????????? | | ?????????????????????????????????????????????????? | | ?????????????????????????????????????????????????? | | ?????????????????????????????????????????????????? | | ?????????????????????????????????????????????????? | | ?????????????????????????????????????????????????? | | ?????????????????????????????????????????????????? | | ?????????????????????????????????????????????????? | | ?????????????????????????????????????????????????? | | ?????????????????????????????????????????????????? | | ?????????????????????????????????????????????????? | | ?????????????????????????????????????????????????? | | ?????????????????????????????????????????????????? | | ?????????????????????????????????????????????????? | | ??????????? ?????????????????????????????????????? | | ??????????? #??????????????????????????????????? | | ???????????? ????????????????????????????????? | | ??????????????? ??????######?##########???????? | | ?????????????????#